bitfinex-derivatives/quotes_BTCF0:USTF0_20250108
["timestamp","ask_amount","ask_price","bid_price","bid_amount"]
[1736344814915,0.174,95405.0,95404.0,0.3608]
[1736344815715,0.174,95405.0,95404.0,0.3638]
[1736344816817,0.174,95405.0,95404.0,0.3648]
[1736344817120,0.0897,95405.0,95404.0,0.3648]
[1736344817320,0.052412,95421.0,95418.0,0.052413]
[1736344818223,0.00997123,95422.0,95418.0,0.052413]
[1736344818415,0.137508,95428.0,95418.0,0.052413]
[1736344818618,0.105,95420.0,95419.0,0.04721317]
[1736344819327,0.104,95420.0,95418.0,0.052413]
[1736344819628,0.104,95420.0,95419.0,0.04720776]
[1736344819923,0.104,95420.0,95418.0,0.052413]
[1736344820319,0.106,95420.0,95418.0,0.052413]
[1736344820516,0.106,95420.0,95419.0,0.04720192]
[1736344820918,0.106,95420.0,95419.0,0.40800192]
[1736344821527,0.105,95420.0,95419.0,0.40800192]
[1736344821827,0.0612096,95440.0,95439.0,0.052402]
[1736344822015,0.0612096,95440.0,95439.0,0.413202]
[1736344822322,0.0612096,95440.0,95439.0,0.3608]
[1736344822828,0.0612096,95440.0,95439.0,0.413202]
[1736344823526,0.0652096,95440.0,95439.0,0.413202]
[1736344824427,0.0702096,95440.0,95439.0,0.414202]
[1736344825233,0.0702096,95440.0,95439.0,0.46135621]
[1736344825526,0.0672096,95440.0,95439.0,0.414202]
[1736344825923,0.0632096,95440.0,95439.0,0.414202]
[1736344826221,0.0672096,95440.0,95439.0,0.414202]
[1736344826730,0.0672096,95440.0,95439.0,0.46133013]
[1736344827225,0.0877,95448.0,95447.0,0.052398]
[1736344827428,0.0877,95448.0,95447.0,0.413198]
[1736344828026,0.140097,95448.0,95447.0,0.3608]
[1736344828424,0.145097,95448.0,95447.0,0.3618]
[1736344829024,0.0927,95448.0,95447.0,0.3618]
[1736344829733,0.0957,95448.0,95447.0,0.3618]
[1736344840845,0.0957,95448.0,95447.0,0.40895641]
[1736344842753,0.148097,95448.0,95447.0,0.0882]
[1736344842947,0.052401,95441.0,95439.0,0.3608]
[1736344843147,0.052402,95439.0,95438.0,0.4696]
[1736344844250,0.005,95441.0,95439.0,0.052402]
[1736344844445,0.002,95441.0,95439.0,0.052402]
[1736344845351,0.002,95441.0,95440.0,0.04715399]
[1736344845759,0.003,95441.0,95440.0,0.04715399]
[1736344845955,0.003,95441.0,95439.0,0.052402]
[1736344846854,0.005,95441.0,95439.0,0.052402]
[1736344847059,0.007,95441.0,95440.0,0.001]
[1736344847453,0.007,95441.0,95440.0,0.04816098]
[1736344847655,0.007,95441.0,95439.0,0.052402]
[1736344848258,0.007,95441.0,95440.0,0.04816319]
[1736344848564,0.007,95441.0,95440.0,0.001]
[1736344848758,0.007,95441.0,95438.0,0.4696]
[1736344848961,0.059401,95441.0,95438.0,0.4696]
[1736344849963,0.007,95441.0,95439.0,0.052402]
[1736344851061,0.007,95441.0,95440.0,0.04721512]
[1736344852965,0.005,95441.0,95440.0,0.04721512]
[1736344853165,0.007,95441.0,95440.0,0.04721512]
[1736344855655,0.052402,95440.0,95438.0,0.4696]
[1736344855857,0.143302,95440.0,95438.0,0.4696]
[1736344856266,0.143302,95440.0,95438.0,0.3305]
[1736344856469,0.143302,95440.0,95438.0,0.0523]
[1736344856970,0.052409,95426.0,95424.0,0.2407763]
[1736344857153,0.052409,95426.0,95425.0,0.04688402]
[1736344857660,0.3608,95431.0,95425.0,0.04688402]
[1736344857864,0.413207,95431.0,95427.0,0.052408]
[1736344858167,0.3608,95431.0,95429.0,0.052407]
[1736344858364,0.0929,95440.0,95437.0,0.052403]
[1736344858568,0.0929,95440.0,95430.0,0.04688402]
[1736344858569,0.005,95441.0,95438.0,0.04688402]
[1736344858757,0.005,95441.0,95440.0,0.052402]
[1736344858758,0.057401,95441.0,95440.0,0.052402]
[1736344859066,0.005,95441.0,95440.0,0.09928602]
[1736344859463,0.005,95441.0,95440.0,0.04688402]
[1736344859666,0.004,95441.0,95440.0,0.04688402]
[1736344859864,0.004,95441.0,95426.0,0.2206]
[1736344860066,0.3608,95431.0,95427.0,0.04686192]
[1736344860269,0.052411,95422.0,95420.0,0.19006165]
[1736344860566,0.0884,95421.0,95420.0,0.19006165]
[1736344860769,0.0884,95421.0,95420.0,0.23692549]
[1736344860963,0.4492,95421.0,95420.0,0.19006165]
[1736344861473,0.4492,95421.0,95420.0,0.00169535]
[1736344861660,0.4492,95421.0,95420.0,0.00012352]
[1736344862764,0.052411,95422.0,95421.0,0.052412]
[1736344862971,0.06260857,95429.0,95427.0,0.052408]
[1736344863162,0.001,95431.0,95430.0,0.052407]
[1736344863464,0.0105128,95434.0,95430.0,0.052407]
[1736344863663,0.052406,95432.0,95430.0,0.052407]
[1736344864865,0.002,95434.0,95425.0,0.3608]
[1736344865064,0.002,95434.0,95432.0,0.052406]
[1736344865265,0.002,95434.0,95433.0,0.04679369]
[1736344865459,0.002,95434.0,95433.0,0.40759369]
[1736344866170,0.3608,95443.0,95433.0,0.40759369]
[1736344866472,0.3608,95443.0,95442.0,0.0524]
[1736344866674,0.21859372,95455.0,95453.0,0.052394]
[1736344866868,0.052393,95456.0,95453.0,0.052394]
[1736344867069,0.052393,95456.0,95454.0,0.052394]
[1736344867469,0.1,95460.0,95445.0,0.10548842]
[1736344867766,0.16264963,95460.0,95446.0,0.04679863]
[1736344867956,0.16264963,95460.0,95458.0,0.052391]
[1736344868364,0.1,95460.0,95458.0,0.052391]
[1736344868662,0.1,95460.0,95459.0,0.04679458]
[1736344868878,0.1,95460.0,95458.0,0.052391]
[1736344869057,0.152391,95460.0,95454.0,0.001]
[1736344869262,0.052393,95456.0,95454.0,0.053394]
[1736344869464,0.052393,95456.0,95455.0,0.04679859]
[1736344869672,0.052393,95456.0,95454.0,0.053394]
[1736344870373,0.052393,95456.0,95454.0,0.052394]
[1736344871372,0.107,95460.0,95459.0,0.052391]
[1736344871673,0.103,95460.0,95459.0,0.052391]
[1736344872263,0.103,95460.0,95454.0,0.001]
[1736344872471,0.103,95460.0,95434.0,0.00157157]
[1736344872472,0.052404,95435.0,95434.0,0.00157157]
[1736344872678,0.413204,95435.0,95434.0,0.00157157]
[1736344872865,0.413204,95435.0,95422.0,0.78265988]
[1736344873060,0.3608,95435.0,95433.0,0.052405]
[1736344874160,0.3608,95435.0,95433.0,0.053405]
[1736344874966,0.3608,95435.0,95433.0,0.054405]
[1736344875172,0.1758,95452.0,95434.0,0.04678328]
[1736344875373,0.1758,95452.0,95433.0,0.002]
[1736344875374,0.1758,95452.0,95447.0,0.3608]
[1736344875571,0.1,95460.0,95448.0,0.04677944]
[1736344875771,0.20548842,95460.0,95447.0,0.3608]
[1736344875974,0.052398,95447.0,95440.0,0.10548842]
[1736344876173,0.052398,95447.0,95441.0,0.04677921]
[1736344876368,0.052398,95447.0,95444.0,0.052399]
[1736344876568,0.052394,95455.0,95450.0,0.052396]
[1736344876877,0.052394,95455.0,95447.0,0.3608]
[1736344877069,0.052394,95455.0,95448.0,0.04677295]
[1736344878277,0.058394,95455.0,95449.0,0.09916895]
[1736344878472,0.058394,95455.0,95450.0,0.04677295]
[1736344879183,0.058394,95455.0,95450.0,0.09916895]
[1736344879376,0.058394,95455.0,95451.0,0.04677295]
[1736344879577,0.058394,95455.0,95451.0,0.052395]
[1736344879978,0.058394,95455.0,95452.0,0.0467894]
[1736344880179,0.058394,95455.0,95451.0,0.052395]
[1736344880375,0.060394,95455.0,95451.0,0.052395]
[1736344880579,0.059394,95455.0,95451.0,0.052395]
[1736344880778,0.059394,95455.0,95452.0,0.04679661]
[1736344881278,0.059394,95455.0,95453.0,0.052394]
[1736344881678,0.054394,95455.0,95453.0,0.052394]
[1736344881974,0.059394,95455.0,95453.0,0.052394]
[1736344882374,0.059394,95455.0,95453.0,0.053394]
[1736344883585,0.060394,95455.0,95453.0,0.053394]
[1736344889980,0.060394,95455.0,95453.0,0.001]
[1736344890378,0.3608,95454.0,95453.0,0.001]
[1736344890581,0.3608,95454.0,95429.0,0.3644]
[1736344890881,0.052403,95437.0,95435.0,0.052404]
[1736344891977,0.052405,95434.0,95425.0,0.3608]
[1736344892388,0.052405,95434.0,95432.0,0.052406]
[1736344892985,0.052401,95441.0,95425.0,0.3608]
[1736344893181,0.052397,95450.0,95437.0,0.3608]
[1736344893381,0.37391063,95454.0,95440.0,0.10548842]
[1736344893583,0.052397,95449.0,95448.0,0.052397]
[1736344895289,0.058397,95449.0,95448.0,0.053397]
[1736344895491,0.058397,95449.0,95448.0,0.001]
[1736344896084,0.060397,95449.0,95448.0,0.001]
[1736344900288,0.060397,95449.0,95448.0,0.10025558]
[1736344900595,0.008,95449.0,95448.0,0.10025558]
[1736344901890,0.007,95449.0,95448.0,0.11081598]
[1736344902588,0.007,95449.0,95448.0,0.10025558]
[1736344902793,0.007,95449.0,95448.0,0.28862188]
[1736344903700,0.007,95449.0,95448.0,0.10025558]
[1736344905391,0.1,95460.0,95448.0,0.10025558]
[1736344905601,0.1,95460.0,95459.0,0.413191]
[1736344905797,0.1,95460.0,95459.0,0.46004958]
[1736344906793,0.1,95460.0,95459.0,0.63224958]
[1736344907594,0.1,95460.0,95459.0,0.64256957]
[1736344908598,0.101,95460.0,95459.0,0.64256957]
[1736344910001,0.101,95460.0,95459.0,0.63224958]
[1736344911302,0.101,95460.0,95459.0,0.46004958]
[1736344911900,0.153391,95460.0,95459.0,0.04685858]
[1736344912099,0.153391,95460.0,95450.0,0.10548842]
[1736344912308,0.089,95459.0,95451.0,0.04673655]
[1736344912604,0.089,95459.0,95455.0,0.052393]
[1736344912998,0.052394,95454.0,95440.0,0.10548842]
[1736344913200,0.052394,95454.0,95449.0,0.052397]
[1736344913402,0.052394,95454.0,95452.0,0.052395]
[1736344913592,0.0993345,95459.0,95453.0,0.0467306]
[1736344913798,0.0993345,95459.0,95457.0,0.052392]
[1736344914306,0.0103345,95459.0,95457.0,0.052392]
[1736344914603,0.1,95460.0,95459.0,0.052391]
[1736344915199,0.1,95460.0,95459.0,0.09910774]
[1736344916111,0.101,95460.0,95459.0,0.09910774]
[1736344921000,0.101,95460.0,95455.0,0.3608]
[1736344921001,0.052391,95459.0,95455.0,0.3608]
[1736344921204,0.228191,95459.0,95457.0,0.052392]
[1736344921909,0.318791,95459.0,95457.0,0.052392]
[1736344923209,0.319791,95459.0,95457.0,0.052392]
[1736344924006,0.2674,95459.0,95455.0,0.3608]
[1736344924308,0.052393,95456.0,95455.0,0.3608]
[1736344925215,0.052393,95456.0,95454.0,0.522274]
[1736344925413,0.052393,95456.0,95454.0,0.521714]
[1736344925911,0.052393,95456.0,95454.0,0.46932]
[1736344926716,0.06294215,95456.0,95454.0,0.46932]
[1736344928912,0.06294215,95456.0,95442.0,0.0524]
[1736344928913,0.01054915,95456.0,95442.0,0.0524]
[1736344929219,0.3608,95446.0,95433.0,0.00157172]
[1736344929517,0.052405,95434.0,95433.0,0.00157172]
[1736344929713,0.052405,95434.0,95425.0,0.1877205]
[1736344929921,0.413209,95426.0,95425.0,0.1877205]
[1736344930810,0.413209,95426.0,95422.0,0.052411]
[1736344931012,0.413209,95426.0,95424.0,0.05241]
[1736344931519,0.3608,95426.0,95424.0,0.05241]
[1736344931710,0.052406,95432.0,95431.0,0.052407]
[1736344931915,0.1829,95433.0,95431.0,0.052407]
[1736344932104,0.1829,95433.0,95420.0,0.00012352]
[1736344932312,0.05241,95426.0,95425.0,0.002]
[1736344933213,0.05241,95426.0,95425.0,0.007]
[1736344933608,0.05241,95426.0,95420.0,0.00012352]
[1736344933609,0.052412,95421.0,95420.0,0.00012352]
[1736344933915,0.052412,95421.0,95393.0,0.3608]
[1736344933916,0.05242,95406.0,95405.0,0.00157211]
[1736344934828,0.05253945,95406.0,95405.0,0.00157211]
[1736344936218,0.06405437,95406.0,95405.0,0.01057211]
[1736344937215,0.06405437,95406.0,95405.0,0.01657211]
[1736344942718,0.01163437,95406.0,95405.0,0.01657211]
[1736344945923,0.06405437,95406.0,95405.0,0.01657211]
[1736344946226,0.06405437,95406.0,95405.0,0.015]
[1736344948523,0.01163437,95406.0,95405.0,0.015]
[1736344949727,0.00111945,95406.0,95405.0,0.015]
[1736344949933,0.00111945,95406.0,95405.0,0.199]
[1736344952021,0.3608,95420.0,95408.0,0.10548842]
[1736344952227,0.052414,95418.0,95413.0,0.052416]
[1736344952427,0.052414,95418.0,95408.0,0.10548842]
[1736344953637,0.00084,95420.0,95419.0,0.052413]
[1736344953936,0.05241,95425.0,95422.0,0.052411]
[1736344954128,0.052416,95414.0,95413.0,0.009]
[1736344954829,0.3608,95420.0,95408.0,0.009]
[1736344954830,0.0874,95419.0,95408.0,0.009]
[1736344955032,0.052419,95409.0,95397.0,0.18763941]
[1736344955335,0.052421,95404.0,95398.0,0.052425]
[1736344955638,0.052421,95404.0,95402.0,0.052422]
[1736344955830,0.413218,95411.0,95409.0,0.052418]
[1736344956136,0.413218,95411.0,95398.0,0.0909]
[1736344956137,0.052414,95418.0,95416.0,0.052415]
[1736344957344,0.057414,95418.0,95416.0,0.052415]
[1736344958330,0.005,95418.0,95416.0,0.052415]
[1736344958530,0.005,95418.0,95417.0,0.0873]
[1736344960126,0.057414,95418.0,95417.0,0.0873]
[1736344960733,0.058414,95418.0,95417.0,0.0873]
[1736344961335,0.006,95418.0,95417.0,0.0873]
[1736344962538,0.006,95418.0,95417.0,0.13408079]
[1736344966040,0.3608,95445.0,95417.0,0.13408079]
[1736344966231,0.3608,95445.0,95435.0,0.10548842]
[1736344966541,0.052401,95441.0,95436.0,0.04678079]
[1736344966743,0.052402,95439.0,95437.0,0.04678079]
[1736344966941,0.052402,95439.0,95434.0,0.052404]
[1736344967331,0.052402,95439.0,95435.0,0.001]
[1736344967738,0.052404,95437.0,95435.0,0.001]
[1736344967937,0.3608,95436.0,95422.0,0.3608]
[1736344968232,0.3608,95428.0,95423.0,0.04680755]
[1736344968433,0.3608,95428.0,95421.0,0.18763941]
[1736344968634,0.052415,95416.0,95415.0,0.00157191]
[1736344968837,0.413215,95416.0,95415.0,0.00157191]
[1736344969235,0.413215,95416.0,95409.0,0.18763941]
[1736344969236,0.052418,95410.0,95409.0,0.1860675]
[1736344969437,0.052421,95405.0,95404.0,0.25018588]
[1736344969637,0.413221,95405.0,95404.0,0.25018588]
[1736344970239,0.3608,95405.0,95385.0,0.05400459]
[1736344970437,0.3608,95396.0,95386.0,0.04681063]
[1736344970637,0.052429,95391.0,95387.0,0.04681063]
[1736344970841,0.052429,95391.0,95388.0,0.04681063]
[1736344971040,0.052429,95391.0,95389.0,0.04681063]
[1736344971239,0.052429,95391.0,95390.0,0.04681063]
[1736344971940,0.36268001,95396.0,95390.0,0.04681063]
[1736344972144,0.052428,95393.0,95391.0,0.04681063]
[1736344972354,0.052428,95393.0,95386.0,0.008]
[1736344972648,0.052428,95393.0,95387.0,0.04679215]
[1736344972839,0.001,95391.0,95389.0,0.007]
[1736344973148,0.001,95391.0,95390.0,0.04679215]
[1736344973537,0.001,95391.0,95389.0,0.059429]
[1736344974048,0.001,95391.0,95390.0,0.04678805]
[1736344974547,0.052428,95392.0,95389.0,0.052429]
[1736344974751,0.052428,95392.0,95389.0,0.056429]
[1736344975046,0.052428,95392.0,95390.0,0.04678301]
[1736344975244,0.001,95391.0,95390.0,0.05278301]
[1736344975634,0.37216906,95396.0,95390.0,0.04678301]
[1736344975832,0.001,95392.0,95391.0,0.052428]
[1736344976246,0.001,95392.0,95391.0,0.09920747]
[1736344977649,0.01056905,95396.0,95395.0,0.052426]
[1736344977850,0.052424,95400.0,95391.0,0.04677947]
[1736344977851,0.052424,95400.0,95396.0,0.052425]
[1736344978037,0.24052788,95407.0,95391.0,0.003]
[1736344978242,0.18810788,95407.0,95399.0,0.052424]
[1736344978547,0.052422,95404.0,95400.0,0.052423]
[1736344978747,0.052422,95404.0,95402.0,0.052422]
[1736344979449,0.37210801,95405.0,95404.0,0.052421]
[1736344979747,0.371308,95405.0,95404.0,0.052421]
[1736344980148,0.010508,95405.0,95404.0,0.052421]
[1736344980450,0.05242,95406.0,95404.0,0.052421]
[1736344980749,0.10548842,95414.0,95402.0,0.001]
[1736344980950,0.052421,95404.0,95402.0,0.001]
[1736344981841,0.18810788,95403.0,95402.0,0.002]
[1736344982651,0.18810788,95403.0,95402.0,0.001]
[1736344983543,0.04887867,95404.0,95403.0,0.052422]
[1736344983947,0.05924921,95404.0,95403.0,0.052422]
[1736344984744,0.01037054,95404.0,95403.0,0.052422]
[1736344984939,0.18810788,95410.0,95409.0,0.052419]
[1736344985153,0.18810788,95410.0,95409.0,0.413219]
[1736344985752,0.18810788,95410.0,95409.0,0.45987669]
[1736344986265,0.052413,95419.0,95409.0,0.40745769]
[1736344986553,0.052413,95419.0,95418.0,0.052414]
[1736344986754,0.18810788,95423.0,95409.0,0.46628842]
[1736344986957,0.24051888,95424.0,95422.0,0.052411]
[1736344987854,0.24051888,95424.0,95409.0,0.46628842]
[1736344987855,0.052413,95419.0,95415.0,0.052415]
[1736344988547,0.052411,95424.0,95416.0,0.052414]
[1736344988753,0.052412,95421.0,95410.0,0.10548842]
[1736344988952,0.052412,95421.0,95419.0,0.052413]
[1736344989146,0.008,95424.0,95423.0,0.052411]
[1736344989354,0.002,95424.0,95423.0,0.052411]
[1736344989659,0.002,95424.0,95423.0,0.0990265]
[1736344990064,0.01039757,95430.0,95423.0,0.0466155]
[1736344990250,0.052407,95431.0,95429.0,0.052408]
[1736344991257,0.37210108,95435.0,95419.0,0.0876]
[1736344991457,0.052408,95428.0,95420.0,0.10548842]
[1736344991656,0.01,95424.0,95423.0,0.053411]
[1736344992454,0.002,95424.0,95423.0,0.052411]
[1736344993261,0.01,95424.0,95423.0,0.053411]
[1736344993663,0.37126108,95435.0,95434.0,0.052405]
[1736344993958,0.37226108,95435.0,95434.0,0.052405]
[1736344995564,0.38126108,95435.0,95434.0,0.053405]
[1736344996066,0.01,95435.0,95434.0,0.053405]
[1736344996254,0.052398,95448.0,95447.0,0.052398]
[1736344996651,0.0524,95443.0,95440.0,0.052401]
[1736344996857,0.052404,95436.0,95434.0,0.001]
[1736344997267,0.1759,95435.0,95434.0,0.001]
[1736344997461,0.052405,95433.0,95416.0,0.3608]
[1736344997653,0.052415,95415.0,95414.0,0.47181199]
[1736344997858,0.052415,95415.0,95414.0,0.47121199]
[1736344999370,0.052415,95415.0,95414.0,0.47421199]
[1736344999561,0.06258697,95415.0,95414.0,0.47421199]
[1736344999868,0.06258697,95415.0,95414.0,0.47321199]
[1736345000068,0.06258697,95415.0,95414.0,0.47521199]
[1736345001568,0.01017197,95415.0,95414.0,0.52762799]
[1736345001861,0.36168001,95426.0,95415.0,0.052415]
[1736345001862,0.413209,95426.0,95415.0,0.052415]
[1736345002165,0.413209,95426.0,95414.0,0.47521199]
[1736345002166,0.052409,95426.0,95424.0,0.05241]
[1736345002561,0.06300975,95426.0,95424.0,0.05241]
[1736345003264,0.052411,95422.0,95418.0,0.052414]
[1736345003465,0.052411,95422.0,95420.0,0.052412]
[1736345003967,0.052411,95422.0,95415.0,0.3668]
[1736345003968,0.05241,95425.0,95415.0,0.058415]
[1736345004169,0.052414,95418.0,95415.0,0.058415]
[1736345004757,0.052414,95418.0,95415.0,0.052415]
[1736345004965,0.01026238,95425.0,95414.0,0.47181199]
[1736345005172,0.05241,95424.0,95422.0,0.052411]
[1736345005665,0.37109256,95426.0,95417.0,0.052414]
[1736345005870,0.052412,95421.0,95420.0,0.002]
[1736345008269,0.052412,95421.0,95420.0,0.004]
[1736345008569,0.052412,95421.0,95420.0,0.002]
[1736345009361,0.052412,95421.0,95420.0,0.001]
[1736345009565,0.052412,95421.0,95420.0,0.002]
[1736345012779,0.01029256,95426.0,95420.0,0.0947]
[1736345013075,0.052409,95427.0,95420.0,0.0947]
[1736345013076,0.052409,95427.0,95425.0,0.05241]
[1736345014370,0.21908835,95439.0,95421.0,0.1743]
[1736345014575,0.21908835,95443.0,95426.0,0.46628842]
[1736345014772,0.052401,95441.0,95435.0,0.052404]
[1736345014974,0.21908835,95443.0,95435.0,0.052404]
[1736345015479,0.37109713,95436.0,95435.0,0.052404]
[1736345015975,0.37209713,95436.0,95435.0,0.052404]
[1736345016363,0.37209713,95436.0,95435.0,0.053404]
[1736345016577,0.37109713,95436.0,95435.0,0.053404]
[1736345016772,0.37109713,95436.0,95435.0,0.054404]
[1736345017482,0.42350113,95436.0,95435.0,0.054404]
[1736345017673,0.42350113,95436.0,95435.0,0.002]
[1736345017869,0.42350113,95436.0,95435.0,0.001]
[1736345018478,0.42350113,95436.0,95435.0,0.002]
[1736345019076,0.42350113,95436.0,95435.0,0.001]
[1736345021678,0.052405,95434.0,95433.0,0.052405]
[1736345022781,0.052405,95434.0,95433.0,0.053405]
[1736345023980,0.052405,95434.0,95433.0,0.002]
[1736345027070,0.5601151,95436.0,95434.0,0.052405]
[1736345027275,0.55931509,95436.0,95435.0,0.0466896]
[1736345027785,0.37109713,95436.0,95435.0,0.0466896]
[1736345029185,0.37109713,95436.0,95435.0,0.0476896]
[1736345029787,0.37109713,95436.0,95435.0,0.1000936]
[1736345030280,0.37109713,95436.0,95435.0,0.053404]
[1736345031182,0.3608,95436.0,95435.0,0.053404]
[1736345031387,0.18822767,95443.0,95442.0,0.0524]
[1736345031780,0.18822767,95443.0,95442.0,0.0990957]
[1736345032189,0.052397,95449.0,95448.0,0.052397]
[1736345033589,0.24059306,95449.0,95448.0,0.052397]
[1736345034686,0.3608,95451.0,95450.0,0.052396]
[1736345035288,0.052392,95459.0,95450.0,0.04667097]
[1736345035581,0.052392,95459.0,95457.0,0.052392]
[1736345035788,0.06264614,95459.0,95457.0,0.052392]
[1736345036786,0.18809341,95458.0,95457.0,0.052392]
[1736345038091,0.25173955,95459.0,95457.0,0.053392]
[1736345038591,0.25073955,95459.0,95457.0,0.053392]
[1736345038794,0.001,95458.0,95457.0,0.053392]
[1736345039182,0.001,95458.0,95457.0,0.052392]
[1736345039492,0.06364614,95459.0,95457.0,0.053392]
[1736345040487,0.06364614,95459.0,95457.0,0.001]
[1736345041197,0.06264614,95459.0,95457.0,0.001]
[1736345041397,0.001,95458.0,95457.0,0.001]
[1736345041598,0.052399,95444.0,95442.0,0.0524]
[1736345041782,0.052399,95444.0,95443.0,0.04668996]
[1736345041986,0.052399,95444.0,95442.0,0.0524]
[1736345042386,0.052396,95450.0,95440.0,0.0832]
[1736345042590,0.052397,95449.0,95447.0,0.052398]
[1736345043095,0.18804775,95450.0,95440.0,0.0832]
[1736345043395,0.4132,95442.0,95430.0,0.052407]
[1736345043591,0.3608,95442.0,95434.0,0.052405]
[1736345043791,0.052404,95436.0,95428.0,0.413208]
[1736345043987,0.10548842,95438.0,95418.0,0.25018588]
[1736345044193,0.052411,95425.0,95424.0,0.05241]
[1736345044390,0.052411,95425.0,95424.0,0.09911394]
[1736345044595,0.052411,95425.0,95424.0,0.05241]
[1736345045286,0.3608,95427.0,95418.0,0.056413]
[1736345045287,0.052413,95419.0,95418.0,0.056413]
[1736345045989,0.3608,95427.0,95415.0,0.16577194]
[1736345046297,0.3608,95427.0,95425.0,0.05241]
[1736345046598,0.052407,95430.0,95428.0,0.052408]
[1736345046902,0.18804775,95432.0,95430.0,0.052407]
[1736345047201,0.18804775,95432.0,95431.0,0.04668609]
[1736345047408,0.18804775,95435.0,95432.0,0.052406]
[1736345047600,0.24045275,95435.0,95434.0,0.052405]
[1736345048499,0.052405,95435.0,95434.0,0.052405]
[1736345048698,0.18804775,95437.0,95436.0,0.052404]
[1736345048891,0.18804775,95437.0,95436.0,0.09907155]
[1736345049196,0.18804775,95439.0,95438.0,0.052403]
[1736345049502,0.18804775,95439.0,95438.0,0.09907055]
[1736345050197,0.18804775,95448.0,95447.0,0.052398]
[1736345050594,0.18804775,95448.0,95447.0,0.09906084]
[1736345051102,0.18804775,95457.0,95447.0,0.04666284]
[1736345051297,0.18804775,95457.0,95448.0,0.04666284]
[1736345051492,0.18804775,95457.0,95444.0,0.3608]
[1736345051803,0.18804775,95457.0,95452.0,0.3608]
[1736345051994,0.18804775,95457.0,95456.0,0.052393]
[1736345052195,0.18804775,95458.0,95456.0,0.052393]
[1736345052399,0.18804775,95458.0,95457.0,0.0882]
[1736345052601,0.18804775,95458.0,95457.0,0.2506]
[1736345053102,0.05354775,95458.0,95457.0,0.2506]
[1736345053491,0.05354775,95458.0,95457.0,0.29723464]
[1736345053699,0.1,95460.0,95458.0,0.052392]
[1736345053895,0.1,95460.0,95459.0,0.04663464]
[1736345054302,0.21908835,95479.0,95459.0,0.04663464]
[1736345054501,0.01018475,95474.0,95467.0,0.052387]
[1736345055497,0.052381,95479.0,95475.0,0.052382]
[1736345055706,0.052381,95477.0,95475.0,0.052382]
[1736345056695,0.052381,95477.0,95475.0,0.053382]
[1736345057006,0.052381,95477.0,95475.0,0.001]
[1736345058301,0.001,95477.0,95475.0,0.001]
[1736345058500,0.052382,95476.0,95475.0,0.001]
[1736345060398,0.053382,95476.0,95475.0,0.001]
[1736345078619,0.001,95476.0,95475.0,0.001]
[1736345082014,0.001,95476.0,95475.0,0.04768375]
[1736345082223,0.053382,95476.0,95475.0,0.001]
[1736345087726,0.0534559,95476.0,95475.0,0.001]
[1736345101141,0.4142559,95476.0,95475.0,0.001]
[1736345104051,0.0010739,95476.0,95475.0,0.001]
[1736345104348,0.1,95480.0,95479.0,0.05238]
[1736345104548,0.1,95480.0,95479.0,0.09917656]
[1736345104748,0.0140064,95480.0,95479.0,0.09917656]
[1736345105143,0.25038669,95504.0,95499.0,0.052369]
[1736345105345,0.61035595,95500.0,95499.0,0.82076556]
[1736345105548,0.2205,95500.0,95499.0,0.82076556]
[1736345105948,0.25038669,95516.0,95515.0,0.05236]
[1736345106143,0.25038669,95516.0,95515.0,0.45995656]
[1736345106455,0.25038669,95516.0,95515.0,0.41316]
[1736345106641,0.25038669,95516.0,95515.0,0.46004355]
[1736345107051,0.1,95520.0,95519.0,0.052358]
[1736345107857,0.05236,95516.0,95515.0,0.001]
[1736345108154,0.0795,95519.0,95515.0,0.001]
[1736345108347,0.0795,95519.0,95518.0,0.052359]
[1736345109655,0.0795,95519.0,95518.0,0.053359]
[1736345110650,0.0795,95519.0,95518.0,0.001]
[1736345111157,0.052365,95508.0,95501.0,0.052368]
[1736345111344,0.0795,95519.0,95501.0,0.052368]
[1736345111345,0.3608,95507.0,95501.0,0.052368]
[1736345111853,0.0795,95519.0,95501.0,0.052368]
[1736345112155,0.052369,95501.0,95499.0,0.46932]
[1736345112560,0.0801,95500.0,95489.0,0.3608]
[1736345112948,0.052372,95494.0,95489.0,0.3608]
[1736345114148,0.052372,95494.0,95489.0,0.3618]
[1736345114356,0.052372,95494.0,95490.0,0.3608]
[1736345114860,0.3608,95495.0,95489.0,0.001]
[1736345115049,0.052374,95492.0,95489.0,0.002]
[1736345117045,0.052374,95492.0,95490.0,0.001]
[1736345117248,0.052374,95492.0,95490.0,0.002]
[1736345117749,0.052374,95492.0,95490.0,0.001]
[1736345117956,0.052374,95492.0,95489.0,0.002]
[1736345118455,0.052374,95492.0,95489.0,0.054375]
[1736345118659,0.052374,95492.0,95490.0,0.001]
[1736345118856,0.3608,95495.0,95493.0,0.052372]
[1736345119748,0.3608,95495.0,95490.0,0.002]
[1736345119749,0.052373,95492.0,95490.0,0.002]
[1736345120458,0.052373,95492.0,95490.0,0.001]
[1736345120658,0.3608,95495.0,95493.0,0.052372]
[1736345122355,0.052363,95512.0,95494.0,0.3608]
[1736345122658,0.157,95519.0,95518.0,0.052359]
[1736345123350,0.0784,95519.0,95518.0,0.052359]
[1736345123551,0.1,95520.0,95518.0,0.052359]
[1736345126452,0.1,95520.0,95518.0,0.053359]
[1736345130766,0.0801,95519.0,95518.0,0.053359]
[1736345133355,0.0801,95519.0,95516.0,0.3608]
[1736345133664,0.132458,95519.0,95518.0,0.052359]
[1736345134065,0.132458,95519.0,95511.0,0.052362]
[1736345134066,0.052359,95517.0,95511.0,0.052362]
[1736345134364,0.0801,95519.0,95509.0,0.052364]
[1736345134365,0.052361,95515.0,95509.0,0.052364]